[Event "Live Chess"]
[Site "Chess.com"]
[Date "2023.05.21"]
[Round "-"]
[White "YrrriKharkiv"]
[Black "MaximKhimchenko"]
[Result "0-1"]
[WhiteElo "2039"]
[BlackElo "1375"]
[TimeControl "300"]
[EndTime "22:28:44 PDT"]
[Termination "MaximKhimchenko won on time"]

1. d4 {[%clk 0:04:55]} 1... e5 {[%clk 0:04:59.9]} 2. Nf3 {[%clk 0:04:52.9]} 2...
exd4 {[%clk 0:04:59.8]} 3. Nxd4 {[%clk 0:04:51.8]} 3... Nc6 {[%clk 0:04:59.7]}
4. Nf3 {[%clk 0:04:49.8]} 4... Bc5 {[%clk 0:04:58.1]} 5. e3 {[%clk 0:04:47.9]}
5... Nf6 {[%clk 0:04:52.2]} 6. c4 {[%clk 0:04:46.6]} 6... d5 {[%clk 0:04:50.5]}
7. cxd5 {[%clk 0:04:45.2]} 7... Nxd5 {[%clk 0:04:49.9]} 8. Bd2 {[%clk
0:04:37.2]} 8... O-O {[%clk 0:04:46.9]} 9. a3 {[%clk 0:04:19.6]} 9... Re8 {[%clk
0:04:28.3]} 10. Be2 {[%clk 0:04:12.7]} 10... Bg4 {[%clk 0:04:24.6]} 11. O-O
{[%clk 0:04:07.2]} 11... Bd6 {[%clk 0:04:21.8]} 12. Nc3 {[%clk 0:03:52.5]} 12...
Bxf3 {[%clk 0:04:16]} 13. Bxf3 {[%clk 0:03:51.1]} 13... Nf6 {[%clk 0:04:12.3]}
14. Nb5 {[%clk 0:03:33.8]} 14... Ne5 {[%clk 0:04:10.6]} 15. Nxd6 {[%clk
0:03:10.6]} 15... Qxd6 {[%clk 0:04:10.5]} 16. Bc3 {[%clk 0:02:47.6]} 16... Qxd1
{[%clk 0:04:06.1]} 17. Rfxd1 {[%clk 0:02:42.8]} 17... Nxf3+ {[%clk 0:04:04.7]}
18. gxf3 {[%clk 0:02:42.1]} 18... Re6 {[%clk 0:04:00]} 19. Rd3 {[%clk
0:02:31.1]} 19... Kf8 {[%clk 0:03:54]} 20. Rad1 {[%clk 0:02:30.6]} 20... Ke7
{[%clk 0:03:53.8]} 21. Bb4+ {[%clk 0:02:21.3]} 21... Ke8 {[%clk 0:03:50.8]} 22.
Kf1 {[%clk 0:02:17.8]} 22... b6 {[%clk 0:03:47]} 23. e4 {[%clk 0:02:06.5]} 23...
c5 {[%clk 0:03:45.6]} 24. Bd2 {[%clk 0:02:05.5]} 24... Rd8 {[%clk 0:03:34.8]}
25. Rxd8+ {[%clk 0:02:03]} 25... Kxd8 {[%clk 0:03:34.7]} 26. Bg5+ {[%clk
0:01:58.6]} 26... Ke7 {[%clk 0:03:28.4]} 27. Ke2 {[%clk 0:01:53.6]} 27... h6
{[%clk 0:03:25]} 28. Bh4 {[%clk 0:01:50.4]} 28... g5 {[%clk 0:03:21.1]} 29. Bg3
{[%clk 0:01:49.2]} 29... Nh5 {[%clk 0:03:19]} 30. Rd5 {[%clk 0:01:38.4]} 30...
f6 {[%clk 0:03:07.9]} 31. Bb8 {[%clk 0:01:26.6]} 31... Ke8 {[%clk 0:02:33.7]}
32. Ke3 {[%clk 0:01:22.3]} 32... a6 {[%clk 0:02:20.2]} 33. Bc7 {[%clk
0:01:19.4]} 33... Kf7 {[%clk 0:02:17.8]} 34. Rd7+ {[%clk 0:01:04.7]} 34... Kg6
{[%clk 0:02:13.8]} 35. Rd6 {[%clk 0:01:03.8]} 35... Rxd6 {[%clk 0:01:42.8]} 36.
Bxd6 {[%clk 0:01:02.2]} 36... Ng7 {[%clk 0:01:38.7]} 37. Bb8 {[%clk 0:00:51.9]}
37... b5 {[%clk 0:01:30]} 38. a4 {[%clk 0:00:46.4]} 38... bxa4 {[%clk
0:01:22.3]} 39. f4 {[%clk 0:00:35]} 39... gxf4+ {[%clk 0:01:17.9]} 40. Bxf4
{[%clk 0:00:34.6]} 40... Ne6 {[%clk 0:01:17.8]} 41. Bd6 {[%clk 0:00:33.5]} 41...
f5 {[%clk 0:01:13.6]} 42. f4 {[%clk 0:00:25.5]} 42... h5 {[%clk 0:01:05.5]} 43.
Kd3 {[%clk 0:00:19.2]} 43... c4+ {[%clk 0:01:00.7]} 44. Kxc4 {[%clk 0:00:16.9]}
44... fxe4 {[%clk 0:01:00.2]} 45. Kb4 {[%clk 0:00:09.2]} 45... Kf5 {[%clk
0:00:59.7]} 46. Kxa4 {[%clk 0:00:08.6]} 46... Nxf4 {[%clk 0:00:58.9]} 47. Ka5
{[%clk 0:00:05.9]} 47... e3 {[%clk 0:00:58.3]} 48. Kxa6 {[%clk 0:00:04]} 48...
Nd3 {[%clk 0:00:57.5]} 0-1

[Event "Live Chess"]
[Site "Chess.com"]
[Date "2023.05.21"]
[Round "-"]
[White "SavagePawn7"]
[Black "matt1979"]
[Result "0-1"]
[WhiteElo "788"]
[BlackElo "1503"]
[TimeControl "300"]
[EndTime "22:29:43 PDT"]
[Termination "matt1979 won by resignation"]

1. e4 {[%clk 0:04:54.8]} 1... c5 {[%clk 0:04:56.2]} 2. d4 {[%clk 0:04:51.3]}
2... cxd4 {[%clk 0:04:54.7]} 3. c3 {[%clk 0:04:49.3]} 3... Nf6 {[%clk
0:04:52.2]} 4. e5 {[%clk 0:04:44.7]} 4... Nd5 {[%clk 0:04:50.6]} 5. Nf3 {[%clk
0:04:36.7]} 5... Nc6 {[%clk 0:04:47.6]} 6. cxd4 {[%clk 0:04:34]} 6... d6 {[%clk
0:04:42.7]} 7. Bb5 {[%clk 0:04:31.5]} 7... Qa5+ {[%clk 0:04:38.7]} 8. Bd2 {[%clk
0:04:28.8]} 8... Qxb5 {[%clk 0:04:36.7]} 9. Nc3 {[%clk 0:04:10.5]} 9... Nxc3
{[%clk 0:04:34.6]} 10. Bxc3 {[%clk 0:04:09.1]} 10... Bg4 {[%clk 0:04:26.9]} 11.
h3 {[%clk 0:04:06.5]} 11... Bxf3 {[%clk 0:04:24.5]} 12. gxf3 {[%clk 0:04:05]}
12... dxe5 {[%clk 0:04:19.2]} 13. dxe5 {[%clk 0:03:58.6]} 13... Rd8 {[%clk
0:04:15.1]} 14. Qc1 {[%clk 0:03:45.8]} 14... Nxe5 {[%clk 0:04:07.3]} 15. Qe3
{[%clk 0:03:32.8]} 15... Nd3+ {[%clk 0:03:58.4]} 16. Kd1 {[%clk 0:03:27]} 16...
Nxb2+ {[%clk 0:03:54.3]} 17. Kc2 {[%clk 0:03:14.6]} 17... Nc4 {[%clk 0:03:47.4]}
18. Qxa7 {[%clk 0:02:58.9]} 18... e6 {[%clk 0:03:37]} 19. Rab1 {[%clk
0:02:57.1]} 19... Qf5+ {[%clk 0:03:32.4]} 20. Kc1 {[%clk 0:02:45.2]} 20... Ba3+
{[%clk 0:03:29.6]} 21. Rb2 {[%clk 0:02:27.8]} 21... Bxb2+ {[%clk 0:03:23]} 22.
Bxb2 {[%clk 0:02:25.7]} 22... Nxb2 {[%clk 0:03:13.1]} 23. Kxb2 {[%clk
0:02:20.5]} 23... O-O {[%clk 0:03:10.5]} 24. Rc1 {[%clk 0:02:15.4]} 24... Rd2+
{[%clk 0:03:06.3]} 25. Kb3 {[%clk 0:02:11]} 25... Qb5+ {[%clk 0:02:59.8]} 26.
Ka3 {[%clk 0:02:07.1]} 26... Qb2+ {[%clk 0:02:51.2]} 27. Ka4 {[%clk 0:02:00.6]}
27... Qxa2+ {[%clk 0:02:49.2]} 28. Kb5 {[%clk 0:01:54.3]} 28... Qxa7 {[%clk
0:02:46.9]} 29. Rc3 {[%clk 0:01:46.8]} 29... Qa6+ {[%clk 0:02:44.3]} 30. Kb4
{[%clk 0:01:44.8]} 30... Rb2+ {[%clk 0:02:39.1]} 31. Kc5 {[%clk 0:01:41.1]}
31... Rc8+ {[%clk 0:02:34.9]} 32. Kd4 {[%clk 0:01:35.3]} 32... Rxc3 {[%clk
0:02:31.3]} 33. Kxc3 {[%clk 0:01:33.8]} 33... Qb6 {[%clk 0:02:27.4]} 34. Kc4
{[%clk 0:00:56.4]} 34... Qb5+ {[%clk 0:02:19.9]} 0-1

[Event "Live Chess"]
[Site "Chess.com"]
[Date "2023.05.21"]
[Round "-"]
[White "Shepherds_Pie"]
[Black "mirandaasilva"]
[Result "1-0"]
[WhiteElo "1920"]
[BlackElo "1670"]
[TimeControl "300"]
[EndTime "22:30:07 PDT"]
[Termination "Shepherds_Pie won by checkmate"]

1. c4 {[%clk 0:04:56.6]} 1... Nf6 {[%clk 0:04:49.6]} 2. Nc3 {[%clk 0:04:55.2]}
2... e6 {[%clk 0:04:48.3]} 3. e4 {[%clk 0:04:54.1]} 3... Bb4 {[%clk 0:04:45.1]}
4. e5 {[%clk 0:04:52.8]} 4... Bxc3 {[%clk 0:04:40.5]} 5. dxc3 {[%clk 0:04:51.8]}
5... Ne4 {[%clk 0:04:38.7]} 6. Qg4 {[%clk 0:04:50.5]} 6... f5 {[%clk 0:04:31.4]}
7. Qxg7 {[%clk 0:04:47.8]} 7... Rf8 {[%clk 0:04:28.6]} 8. Bd3 {[%clk 0:04:37.7]}
8... Nc6 {[%clk 0:04:22.3]} 9. Bh6 {[%clk 0:04:35.5]} 9... Qe7 {[%clk 0:04:20]}
10. Qxf8+ {[%clk 0:04:33.5]} 10... Qxf8 {[%clk 0:04:18.1]} 11. Bxf8 {[%clk
0:04:32.4]} 11... Kxf8 {[%clk 0:04:13.8]} 12. Nf3 {[%clk 0:04:28.1]} 12... b6
{[%clk 0:04:06.9]} 13. O-O {[%clk 0:04:21.8]} 13... Bb7 {[%clk 0:04:05.8]} 14.
Rfe1 {[%clk 0:04:17.3]} 14... Re8 {[%clk 0:04:05.2]} 15. Bxe4 {[%clk 0:04:13.9]}
15... fxe4 {[%clk 0:04:03.1]} 16. Rxe4 {[%clk 0:04:12.9]} 16... Re7 {[%clk
0:03:58.8]} 17. Rf4+ {[%clk 0:04:11.2]} 17... Kg8 {[%clk 0:03:57.5]} 18. Rd1
{[%clk 0:04:07.5]} 18... Rg7 {[%clk 0:03:57.4]} 19. g3 {[%clk 0:04:01]} 19...
Nd8 {[%clk 0:03:51.3]} 20. Nd4 {[%clk 0:03:50.6]} 20... Nf7 {[%clk 0:03:47.2]}
21. Re1 {[%clk 0:03:48.2]} 21... a5 {[%clk 0:03:42.1]} 22. h4 {[%clk 0:03:42.7]}
22... a4 {[%clk 0:03:40.3]} 23. a3 {[%clk 0:03:40.9]} 23... Nh6 {[%clk
0:03:39.3]} 24. Nb5 {[%clk 0:03:34.9]} 24... Nf5 {[%clk 0:03:26.6]} 25. Kh2
{[%clk 0:03:25.3]} 25... h5 {[%clk 0:03:19.9]} 26. Nxc7 {[%clk 0:03:21.4]} 26...
d5 {[%clk 0:03:19.4]} 27. exd6 {[%clk 0:03:15.2]} 27... Nxd6 {[%clk 0:03:15.4]}
28. Nxe6 {[%clk 0:03:11.7]} 28... Re7 {[%clk 0:03:14.8]} 29. Re5 {[%clk
0:03:06.2]} 29... Nf7 {[%clk 0:03:12.6]} 30. Rxf7 {[%clk 0:02:56.3]} 30... Kxf7
{[%clk 0:03:09.5]} 31. Ng5+ {[%clk 0:02:54.8]} 31... Kf6 {[%clk 0:03:06.6]} 32.
Rxe7 {[%clk 0:02:53]} 32... Kxe7 {[%clk 0:03:05.2]} 33. Nh3 {[%clk 0:02:47.6]}
33... Bf3 {[%clk 0:03:02.2]} 34. Nf4 {[%clk 0:02:45.9]} 34... Bd1 {[%clk
0:02:59.3]} 35. Kg1 {[%clk 0:02:43.9]} 35... Bb3 {[%clk 0:02:56.8]} 36. Kf1
{[%clk 0:02:38.2]} 36... Bxc4+ {[%clk 0:02:56.7]} 37. Ke1 {[%clk 0:02:37.3]}
37... Bf7 {[%clk 0:02:54.7]} 38. Kd2 {[%clk 0:02:36]} 38... Kd6 {[%clk
0:02:53.6]} 39. Ke3 {[%clk 0:02:35.9]} 39... Kc5 {[%clk 0:02:52.5]} 40. Kd3
{[%clk 0:02:33.7]} 40... Bc4+ {[%clk 0:02:50]} 41. Kd2 {[%clk 0:02:30.2]} 41...
Bf7 {[%clk 0:02:49.9]} 42. f3 {[%clk 0:02:24.5]} 42... Kb5 {[%clk 0:02:47.6]}
43. g4 {[%clk 0:02:21.8]} 43... hxg4 {[%clk 0:02:45.5]} 44. fxg4 {[%clk
0:02:20.7]} 44... Kc4 {[%clk 0:02:45.4]} 45. g5 {[%clk 0:02:19.5]} 45... Kb3
{[%clk 0:02:44.4]} 46. Kc1 {[%clk 0:02:18.4]} 46... Bg8 {[%clk 0:02:40.8]} 47.
h5 {[%clk 0:02:16.6]} 47... Kc4 {[%clk 0:02:39.4]} 48. g6 {[%clk 0:02:15.2]}
48... b5 {[%clk 0:02:32.2]} 49. h6 {[%clk 0:02:12.1]} 49... Kb3 {[%clk
0:02:31.4]} 50. h7 {[%clk 0:02:10.7]} 50... Ka2 {[%clk 0:02:31.3]} 51. hxg8=Q+
{[%clk 0:02:08.4]} 51... Ka1 {[%clk 0:02:31.2]} 52. b3 {[%clk 0:01:53.9]} 52...
b4 {[%clk 0:02:31.1]} 53. Qd5 {[%clk 0:01:36]} 53... axb3 {[%clk 0:02:31]} 54.
Qxb3 {[%clk 0:01:31.7]} 54... bxc3 {[%clk 0:02:29.6]} 55. Qb1# {[%clk 0:01:30]}
1-0

[Event "Live Chess"]
[Site "Chess.com"]
[Date "2023.05.21"]
[Round "-"]
[White "CheckThis4"]
[Black "BillythekidFellowes"]
[Result "1-0"]
[WhiteElo "2493"]
[BlackElo "2030"]
[TimeControl "300"]
[EndTime "22:30:09 PDT"]
[Termination "CheckThis4 won by resignation"]

1. d4 {[%clk 0:04:58.3]} 1... e6 {[%clk 0:04:49.7]} 2. e4 {[%clk 0:04:56.8]}
2... d5 {[%clk 0:04:48.9]} 3. e5 {[%clk 0:04:54.5]} 3... c5 {[%clk 0:04:48.4]}
4. c3 {[%clk 0:04:53.9]} 4... Nc6 {[%clk 0:04:47.4]} 5. Nf3 {[%clk 0:04:53.3]}
5... Nge7 {[%clk 0:04:46.5]} 6. Bd3 {[%clk 0:04:51.3]} 6... Ng6 {[%clk
0:04:45.2]} 7. O-O {[%clk 0:04:49.4]} 7... Be7 {[%clk 0:04:44.3]} 8. Na3 {[%clk
0:04:47.6]} 8... a6 {[%clk 0:04:41.1]} 9. Nc2 {[%clk 0:04:46.2]} 9... O-O {[%clk
0:04:39.4]} 10. g3 {[%clk 0:04:35]} 10... b5 {[%clk 0:04:33.2]} 11. h4 {[%clk
0:04:33.4]} 11... Nh8 {[%clk 0:04:23.7]} 12. h5 {[%clk 0:04:30.5]} 12... g6
{[%clk 0:04:22.1]} 13. Bh6 {[%clk 0:04:26.5]} 13... Re8 {[%clk 0:04:21.7]} 14.
Nh2 {[%clk 0:04:17.8]} 14... Bg5 {[%clk 0:04:19.8]} 15. Bxg5 {[%clk 0:04:11.2]}
15... Qxg5 {[%clk 0:04:19.7]} 16. Ng4 {[%clk 0:04:06.6]} 16... Rd8 {[%clk
0:04:00]} 17. f4 {[%clk 0:04:03.7]} 17... Qe7 {[%clk 0:03:54.8]} 18. Nf6+ {[%clk
0:04:02.4]} 18... Kg7 {[%clk 0:03:53]} 19. Qd2 {[%clk 0:03:50.7]} 19... Nb8
{[%clk 0:03:43]} 20. g4 {[%clk 0:03:46.3]} 20... Nd7 {[%clk 0:03:28.2]} 21. g5
{[%clk 0:03:45.1]} 21... h6 {[%clk 0:03:23]} 22. gxh6+ {[%clk 0:03:40.1]} 22...
Kxh6 {[%clk 0:03:22.9]} 23. f5+ {[%clk 0:03:37.1]} 23... Kg7 {[%clk 0:03:21.4]}
24. Nxd7 {[%clk 0:03:33.6]} 24... Qxd7 {[%clk 0:03:19.2]} 25. f6+ {[%clk
0:03:28]} 25... Kh7 {[%clk 0:03:18.3]} 26. Qg5 {[%clk 0:02:59.5]} 26... c4
{[%clk 0:03:08.4]} 27. hxg6+ {[%clk 0:02:46.4]} 27... fxg6 {[%clk 0:03:05.4]}
28. Bxg6+ {[%clk 0:02:36.1]} 28... Nxg6 {[%clk 0:02:58.6]} 29. Qh5+ {[%clk
0:02:35]} 29... Kg8 {[%clk 0:02:57.3]} 30. Qxg6+ {[%clk 0:02:34.3]} 30... Kh8
{[%clk 0:02:57.2]} 31. Rf2 {[%clk 0:02:29]} 1-0

[Event "Live Chess"]
[Site "Chess.com"]
[Date "2023.05.21"]
[Round "-"]
[White "Ocelot32"]
[Black "Jonmill"]
[Result "0-1"]
[WhiteElo "1329"]
[BlackElo "1252"]
[TimeControl "300"]
[EndTime "22:30:47 PDT"]
[Termination "Jonmill won by resignation"]

1. e4 {[%clk 0:04:56.8]} 1... d6 {[%clk 0:04:58.4]} 2. d4 {[%clk 0:04:55.4]}
2... Nf6 {[%clk 0:04:57.4]} 3. Bd3 {[%clk 0:04:52.8]} 3... g6 {[%clk 0:04:53.3]}
4. Nf3 {[%clk 0:04:50.4]} 4... Bg7 {[%clk 0:04:52.5]} 5. O-O {[%clk 0:04:47]}
5... Nc6 {[%clk 0:04:51.6]} 6. c3 {[%clk 0:04:42.9]} 6... O-O {[%clk 0:04:45]}
7. Bf4 {[%clk 0:04:39.7]} 7... Nh5 {[%clk 0:04:36.8]} 8. Be3 {[%clk 0:04:33.4]}
8... e5 {[%clk 0:04:34.3]} 9. d5 {[%clk 0:04:30.7]} 9... Ne7 {[%clk 0:04:27.8]}
10. h3 {[%clk 0:04:29.2]} 10... f5 {[%clk 0:04:23.2]} 11. Nbd2 {[%clk
0:04:25.4]} 11... f4 {[%clk 0:04:19.6]} 12. Bxf4 {[%clk 0:04:15]} 12... Nxf4
{[%clk 0:04:18.1]} 13. Bc2 {[%clk 0:04:13.1]} 13... Kh8 {[%clk 0:03:43]} 14. Re1
{[%clk 0:03:56.6]} 14... Ng8 {[%clk 0:03:35.9]} 15. Nf1 {[%clk 0:03:51.9]} 15...
Qf6 {[%clk 0:03:05.6]} 16. Ne3 {[%clk 0:03:44.8]} 16... Nxh3+ {[%clk 0:02:54.5]}
17. Kh1 {[%clk 0:03:24.4]} 17... Nxf2+ {[%clk 0:02:52]} 0-1

[Event "Live Chess"]
[Site "Chess.com"]
[Date "2023.05.21"]
[Round "-"]
[White "raminguy"]
[Black "Doge_Dandolo"]
[Result "0-1"]
[WhiteElo "1945"]
[BlackElo "1907"]
[TimeControl "300"]
[EndTime "22:30:48 PDT"]
[Termination "Doge_Dandolo won by resignation"]

1. d4 {[%clk 0:04:59.7]} 1... d5 {[%clk 0:04:55.8]} 2. Nc3 {[%clk 0:04:58.3]}
2... Nf6 {[%clk 0:04:53.9]} 3. Bf4 {[%clk 0:04:57.7]} 3... c6 {[%clk 0:04:51.1]}
4. e3 {[%clk 0:04:56.5]} 4... h5 {[%clk 0:04:49]} 5. Nf3 {[%clk 0:04:54.9]} 5...
Bf5 {[%clk 0:04:47.3]} 6. Ne5 {[%clk 0:04:53.5]} 6... Nbd7 {[%clk 0:04:45.6]} 7.
Be2 {[%clk 0:04:44.9]} 7... e6 {[%clk 0:04:42.3]} 8. f3 {[%clk 0:04:37.7]} 8...
Bb4 {[%clk 0:04:36.5]} 9. O-O {[%clk 0:04:31.2]} 9... h4 {[%clk 0:04:31.3]} 10.
a3 {[%clk 0:04:16.7]} 10... Be7 {[%clk 0:04:25.8]} 11. Bd3 {[%clk 0:04:03.9]}
11... Bxd3 {[%clk 0:04:23.7]} 12. cxd3 {[%clk 0:04:02.7]} 12... O-O {[%clk
0:04:20]} 13. Qe1 {[%clk 0:03:53.7]} 13... Qb6 {[%clk 0:04:18.6]} 14. Rb1 {[%clk
0:03:47.9]} 14... c5 {[%clk 0:04:10.7]} 15. dxc5 {[%clk 0:03:29.4]} 15... Qxc5
{[%clk 0:03:59.4]} 16. d4 {[%clk 0:03:25.5]} 16... Qb6 {[%clk 0:03:57.6]} 17.
Bg5 {[%clk 0:03:17.6]} 17... Bd6 {[%clk 0:03:39.7]} 18. Qxh4 {[%clk 0:03:12.2]}
18... Nxe5 {[%clk 0:03:37.3]} 19. Bxf6 {[%clk 0:03:06.5]} 19... Ng6 {[%clk
0:03:32.9]} 20. Qg5 {[%clk 0:03:01]} 20... gxf6 {[%clk 0:03:30.4]} 21. Qxf6
{[%clk 0:02:59.2]} 21... Be7 {[%clk 0:03:24.7]} 0-1

[Event "Live Chess"]
[Site "Chess.com"]
[Date "2023.05.21"]
[Round "-"]
[White "KeithArkell"]
[Black "Biranidun"]
[Result "1/2-1/2"]
[WhiteElo "2560"]
[BlackElo "2549"]
[TimeControl "300"]
[EndTime "22:31:21 PDT"]
[Termination "Game drawn by repetition"]

1. d4 {[%clk 0:04:56.8]} 1... Nf6 {[%clk 0:04:58.8]} 2. Nf3 {[%clk 0:04:55.9]}
2... g6 {[%clk 0:04:58.3]} 3. c4 {[%clk 0:04:55]} 3... Bg7 {[%clk 0:04:58]} 4.
Nc3 {[%clk 0:04:54.1]} 4... O-O {[%clk 0:04:57.6]} 5. g3 {[%clk 0:04:53.5]} 5...
d5 {[%clk 0:04:56.8]} 6. cxd5 {[%clk 0:04:52.4]} 6... Nxd5 {[%clk 0:04:56.7]} 7.
Bg2 {[%clk 0:04:51.7]} 7... Nb6 {[%clk 0:04:56.3]} 8. O-O {[%clk 0:04:50.4]}
8... Nc6 {[%clk 0:04:55.9]} 9. e3 {[%clk 0:04:49.4]} 9... Re8 {[%clk 0:04:54.5]}
10. b3 {[%clk 0:04:48.3]} 10... e5 {[%clk 0:04:54]} 11. Nxe5 {[%clk 0:04:47.7]}
11... Nxe5 {[%clk 0:04:52.9]} 12. dxe5 {[%clk 0:04:47]} 12... Qxd1 {[%clk
0:04:52.8]} 13. Rxd1 {[%clk 0:04:45.6]} 13... Bxe5 {[%clk 0:04:52.7]} 14. Bb2
{[%clk 0:04:45]} 14... c6 {[%clk 0:04:52.1]} 15. Rd2 {[%clk 0:04:44.5]} 15...
Bf5 {[%clk 0:04:48.4]} 16. Ne2 {[%clk 0:04:37.7]} 16... Bxb2 {[%clk 0:04:45.5]}
17. Rxb2 {[%clk 0:04:36.6]} 17... Rad8 {[%clk 0:04:27.1]} 18. Nd4 {[%clk
0:04:35.3]} 18... Be4 {[%clk 0:04:25.8]} 19. Rc1 {[%clk 0:04:32.6]} 19... Bxg2
{[%clk 0:04:23.8]} 20. Kxg2 {[%clk 0:04:32.2]} 20... Nd5 {[%clk 0:04:12]} 21. b4
{[%clk 0:04:25.7]} 21... a6 {[%clk 0:04:09.9]} 22. a4 {[%clk 0:04:23.8]} 22...
Nb6 {[%clk 0:03:49.8]} 23. Ra2 {[%clk 0:04:15.8]} 23... Ra8 {[%clk 0:03:36.5]}
24. Nb3 {[%clk 0:04:08.4]} 24... Nd5 {[%clk 0:03:35.4]} 25. Rc4 {[%clk
0:04:02.2]} 25... Re7 {[%clk 0:03:32.3]} 26. Kf3 {[%clk 0:03:53.8]} 26... Rae8
{[%clk 0:03:24.5]} 27. Nc5 {[%clk 0:03:48]} 27... Ra8 {[%clk 0:03:16.7]} 28. Rb2
{[%clk 0:03:38.7]} 28... Kg7 {[%clk 0:03:01.1]} 29. Rd4 {[%clk 0:03:36.7]} 29...
Nc7 {[%clk 0:02:49.7]} 30. Ne4 {[%clk 0:03:20.2]} 30... Ne6 {[%clk 0:02:44.7]}
31. Rc4 {[%clk 0:03:16]} 31... Rd8 {[%clk 0:02:35.4]} 32. b5 {[%clk 0:03:11.4]}
32... cxb5 {[%clk 0:02:30.8]} 33. axb5 {[%clk 0:03:10.6]} 33... a5 {[%clk
0:02:30.4]} 34. b6 {[%clk 0:03:10.1]} 34... Rd5 {[%clk 0:02:28.8]} 35. h4 {[%clk
0:02:43.5]} 35... h5 {[%clk 0:02:27.7]} 36. Nc3 {[%clk 0:02:34.7]} 36... Rf5+
{[%clk 0:02:26.5]} 37. Kg2 {[%clk 0:02:33.3]} 37... Rd7 {[%clk 0:02:22.5]} 38.
Rb5 {[%clk 0:02:15.9]} 38... Rxb5 {[%clk 0:01:51.7]} 39. Nxb5 {[%clk 0:02:15.8]}
39... Rd5 {[%clk 0:01:51.1]} 40. Nc7 {[%clk 0:02:10.9]} 40... Re5 {[%clk
0:01:40.1]} 41. Ne8+ {[%clk 0:02:04.1]} 41... Kf8 {[%clk 0:01:36.7]} 42. Nd6
{[%clk 0:02:03.4]} 42... Rc5 {[%clk 0:01:15.6]} 43. Ra4 {[%clk 0:01:55.5]} 43...
Nd8 {[%clk 0:01:09.7]} 44. Nc4 {[%clk 0:01:53.7]} 44... Nc6 {[%clk 0:01:07.6]}
45. Nd6 {[%clk 0:01:53]} 45... Nd8 {[%clk 0:01:05.7]} 46. Nc4 {[%clk 0:01:51.4]}
46... Nc6 {[%clk 0:01:04.8]} 47. Nd6 {[%clk 0:01:50.8]} 47... Nd8 {[%clk
0:01:04.3]} 1/2-1/2

[Event "Live Chess"]
[Site "Chess.com"]
[Date "2023.05.21"]
[Round "-"]
[White "LaupMiths"]
[Black "Hacker_2009"]
[Result "1/2-1/2"]
[WhiteElo "1807"]
[BlackElo "1931"]
[TimeControl "300"]
[EndTime "22:31:37 PDT"]
[Termination "Game drawn by agreement"]

1. Nf3 {[%clk 0:04:53.9]} 1... c5 {[%clk 0:04:56.5]} 2. c4 {[%clk 0:04:53.2]}
2... Nc6 {[%clk 0:04:54.9]} 3. Nc3 {[%clk 0:04:51.4]} 3... d6 {[%clk 0:04:54.3]}
4. g3 {[%clk 0:04:50.6]} 4... Nf6 {[%clk 0:04:53.8]} 5. Bg2 {[%clk 0:04:49.9]}
5... e6 {[%clk 0:04:53.1]} 6. O-O {[%clk 0:04:47.3]} 6... Be7 {[%clk 0:04:52.5]}
7. d3 {[%clk 0:04:38.7]} 7... O-O {[%clk 0:04:51.2]} 8. a3 {[%clk 0:04:37.7]}
8... b6 {[%clk 0:04:49.7]} 9. Rb1 {[%clk 0:04:36.2]} 9... Bb7 {[%clk 0:04:48.9]}
10. b4 {[%clk 0:04:34]} 10... cxb4 {[%clk 0:04:46.9]} 11. axb4 {[%clk
0:04:32.4]} 11... d5 {[%clk 0:04:46.3]} 12. b5 {[%clk 0:04:31]} 12... Nb4 {[%clk
0:04:43.2]} 13. Qb3 {[%clk 0:04:16.4]} 13... Rc8 {[%clk 0:04:30.9]} 14. cxd5
{[%clk 0:04:06.4]} 14... Nbxd5 {[%clk 0:04:28.4]} 15. Nxd5 {[%clk 0:04:04.9]}
15... Bxd5 {[%clk 0:04:24.6]} 16. Qa4 {[%clk 0:04:02.6]} 16... Qd7 {[%clk
0:04:23.1]} 17. Ne5 {[%clk 0:03:59.4]} 17... Qb7 {[%clk 0:04:19.7]} 18. e4
{[%clk 0:03:49.3]} 18... Bd6 {[%clk 0:03:54.7]} 19. Bb2 {[%clk 0:03:40.8]} 19...
Qb8 {[%clk 0:03:47.3]} 20. exd5 {[%clk 0:03:32.6]} 20... Bxe5 {[%clk 0:03:45.4]}
21. dxe6 {[%clk 0:03:30.1]} 21... Bxb2 {[%clk 0:03:42.2]} 22. Rxb2 {[%clk
0:03:28.1]} 22... fxe6 {[%clk 0:03:39.6]} 23. Re2 {[%clk 0:03:25.2]} 23... Rfe8
{[%clk 0:03:35.1]} 24. Bc6 {[%clk 0:03:20.3]} 24... Re7 {[%clk 0:03:32.4]} 25.
Qb4 {[%clk 0:03:01.4]} 25... Qc7 {[%clk 0:03:23.9]} 26. Rfe1 {[%clk 0:02:58.1]}
26... a6 {[%clk 0:03:07.2]} 27. d4 {[%clk 0:02:54]} 27... axb5 {[%clk
0:03:05.7]} 28. Bxb5 {[%clk 0:02:52.6]} 28... Nd5 {[%clk 0:03:00.8]} 29. Qd2
{[%clk 0:02:37.9]} 29... Nc3 {[%clk 0:02:58]} 30. Re5 {[%clk 0:02:31.6]} 30...
Nxb5 {[%clk 0:02:46.1]} 31. Rxb5 {[%clk 0:02:29.6]} 31... Qc6 {[%clk 0:02:45.1]}
32. Reb1 {[%clk 0:02:27.1]} 32... Rb7 {[%clk 0:02:39.6]} 33. Qb2 {[%clk
0:02:21.6]} 33... Rd8 {[%clk 0:02:36.6]} 34. Rxb6 {[%clk 0:02:18.6]} 34... Rxb6
{[%clk 0:02:31.6]} 35. Qxb6 {[%clk 0:02:18.5]} 35... Qxb6 {[%clk 0:02:29.5]} 36.
Rxb6 {[%clk 0:02:18.4]} 36... Rxd4 {[%clk 0:02:24.8]} 37. Rxe6 {[%clk 0:02:17]}
37... Kf7 {[%clk 0:02:24.1]} 1/2-1/2